Cogmind - Beta 11.2 @@@ ROGUE MODE // 2023.02.01 @ 17:51:19 Player: HeartGrenade Result: Destroyed by G-67 Veteran with Field Laser Performance ------------- Evolutions (6) 3000 Regions Visited (18) 3600 Robots Destroyed (337) 1685 Value Destroyed (14418) 14418 Prototype IDs (32) 640 Alien Tech Used (0) 0 Bonus (4613) 4613 TOTAL SCORE: 27956 Bonus ------- High Alert Combat Kills 1986 Follower Combat Kills 1524 Network Hubs Disabled 200 Met Imprinter 300 A7 Reached Mainframe 300 Met R17 at Cetus 500 Friendly Fire -197 Cogmind --------- Core Integrity 0/1150 Matter 141/300 Energy 99/100 System Corruption 10% Temperature Cool (21) Movement Core (50) Location -4/Factory Parts ------- > --- POWER (2) -------- (None) > --- PROPULSION (6) --- Improved Heavy Treads Centrium Wheel > --- UTILITY (9) ------ Experimental Optical Array Improved Hacking Suite > --- WEAPON (2) ------- CR-A16's Behemoth Slayer > --- INVENTORY (5) ---- Field Propulsion Array Advanced Cooling System Advanced Terrain Scanner Seismic Detector Peak State ------------ > --- POWER ------------ Reinforced Fission Core Quantum Reactor > --- PROPULSION ------- Armored Medium Treads Armored Medium Treads Centrium Heavy Treads Centrium Heavy Treads > --- UTILITY ---------- Advanced Heat Sink Advanced Heat Sink Improved Coolant Injector Huge Storage Unit Targeting Computer Quantum Capacitor Improved Medium Armor Plating Thief Drone Bay > --- WEAPON ----------- Compact Ion Cannon CR-A16's Behemoth Slayer > --- INVENTORY -------- Neutrino Core Advanced Medium Treads Improved Cooling System Improved Cooling System Improved Cooling System Medium Matter Pod Seismic Detector Improved Weapon Cycler Improved Transmission Jammer Centrium Medium Armor Plating Centrium Medium Armor Plating Centrium Medium Armor Plating EM Disruption Field Improved Hacking Suite Improved Hacking Suite Improved Hacking Suite Authchip [Device] Long-range Tractor Beam Improved Trap Extractor Quantum Rifle Quantum Rifle Advanced Plasma Cannon Improved Heavy Machine Gun Precision Rocket Launcher Precision Rocket Launcher [Rating: 134] Favorites ----------- Power Light Angular Momentum Engine Engine Light Angular Momentum Engine Power Core Light Nuclear Core Reactor Quantum Reactor Propulsion Light Treads Treads Light Treads Leg Myomer Leg Wheel Compact Wheel Utility Advanced Targeting Computer Device Seismic Detector Storage High-capacity Storage Unit Processor Advanced Targeting Computer Hackware Hacking Suite Protection Layered Light Armor Plating Weapon Minigun Energy Gun Gatling Laser Energy Cannon Heavy Ion Cannon Ballistic Gun Minigun Ballistic Cannon Hardcell Cannon Launcher Precision Rocket Launcher Impact Weapon Heavy Flail Piercing Weapon CR-A16's Behemoth Slayer Build | -11 -10 -9 -9 -8 -7 -7 -7 -7 -6 -6 -6 -6 -5 -5 -5 -5 -5 -4 ------- Run | Scr Mat Mat Min Mat Fac Low Low Zio Pro Fac Low Low Fac Ext Cet Arc Hub Fac Slots Evolved 12 | . . 2 . 2 2 . . . . 2 . . 2 . . . . 2 Power 1 | . . . . . . . . . . 1 . . . . . . . . Propulsion 4 | . . 1 . . 1 . . . . . . . 1 . . . . 1 Utility 7 | . . 1 . 2 1 . . . . 1 . . 1 . . . . 1 Weapon . | . . . . . . . . . . . . . . . . . . . Parts Attached 398 | 4 9 12 5 34 25 6 20 . 20 38 29 10 45 38 10 6 24 63 Power 32 | . 1 1 . 2 1 . . . 1 4 1 1 5 6 1 1 3 4 Engine 14 | . 1 1 . . 1 . . . . 3 1 1 2 4 . . . . Core 11 | . . . . 2 . . . . 1 1 . . 3 2 . . 1 1 Reactor 7 | . . . . . . . . . . . . . . . 1 1 2 3 Propulsion 94 | 2 2 2 1 10 7 . 1 . 4 5 9 2 12 12 3 2 3 17 Treads 74 | 2 2 2 1 10 7 . 1 . 4 5 9 1 5 7 3 2 3 10 Leg 6 | . . . . . . . . . . . . 1 . . . . . 5 Wheel 14 | . . . . . . . . . . . . . 7 5 . . . 2 Hover . | . . . . . . . . . . . . . . . . . . . Flight . | . . . . . . . . . . . . . . . . . . . Utility 162 | . 4 7 2 14 9 3 11 . 7 19 9 3 14 14 3 3 14 26 Device 92 | . 2 2 1 3 6 2 8 . 3 14 4 3 9 9 1 2 10 13 Storage 7 | . 1 . . 1 1 . . . . . 1 . 2 1 . . . . Processor 9 | . . . . 3 . . . . . . . . . 2 . . . 4 Hackware 8 | . . . . . 1 . . . . 1 . . 1 . 1 . . 4 Protection 46 | . 1 5 1 7 1 1 3 . 4 4 4 . 2 2 1 1 4 5 Artifact . | . . . . . . . . . . . . . . . . . . . Weapon 110 | 2 2 2 2 8 8 3 8 . 8 10 10 4 14 6 3 . 4 16 Energy Gun 16 | 1 2 2 . 2 2 . . . 1 . . . 3 2 . . . 1 Energy Cannon 15 | . . . . . . . 2 . . 3 2 . 2 1 . . 1 4 Ballistic Gun 42 | 1 . . 2 6 4 2 3 . 4 5 3 1 3 1 2 . 2 3 Ballistic Cannon 6 | . . . . . . . . . . . 2 2 2 . . . . . Launcher 23 | . . . . . 1 1 3 . 3 . 2 1 3 2 1 . 1 5 Special Weapon . | . . . . . . . . . . . . . . . . . . . Impact Weapon 1 | . . . . . 1 . . . . . . . . . . . . . Slashing Weapon . | . . . . . . . . . . . . . . . . . . . Piercing Weapon 7 | . . . . . . . . . . 2 1 . 1 . . . . 3 Special Melee Weapon . | . . . . . . . . . . . . . . . . . . . Unidentified Prototypes 14 | . . . 1 2 1 . 1 . . 1 . . 4 . 2 1 . 1 Corrupted Parts 1 | . 1 . . . . . . . . . . . . . . . . . System Corruption 1 | . 1 . . . . . . . . . . . . . . . . . Parts Lost 124 | . 2 4 1 9 1 . 1 . 11 3 14 10 21 5 . 1 11 30 Power 20 | . . 1 . 1 1 . . . 1 1 2 2 4 . . 1 1 5 Propulsion 38 | . 1 . . . . . . . 4 1 5 3 9 3 . . 1 11 Utility 42 | . . 1 . 5 . . 1 . 4 1 5 3 6 1 . . 7 8 Weapon 24 | . 1 2 1 3 . . . . 2 . 2 2 2 1 . . 2 6 Highest Loss Streak 12 | . 1 3 1 1 1 . 1 . 8 2 6 9 12 2 . 1 8 10 To Critical Strikes 1 | . . . . . . . . . . . . . . . . . . 1 Average Slot Usage (%) 90 | . 83 95 93 98 99 100 99 100 98 97 81 62 68 91 93 93 85 72 Engine 5 | . 7 10 11 3 2 7 7 7 . 9 8 7 2 6 . . . . Core 2 | . . . . 5 4 . . . 6 1 . . 2 3 5 . 1 2 Reactor 1 | . . . . . . . . . . . . . . . 4 9 9 4 Treads 22 | . 26 32 32 26 29 30 30 30 29 25 22 7 9 14 17 21 19 9 Leg 1 | . . . . . . . . . . . . 3 . . . . . 12 Wheel 1 | . . . . . . . . . . . . . 6 8 5 1 . . Device 11 | . 9 11 11 13 9 7 7 7 6 6 10 8 15 17 13 12 12 15 Storage 6 | . 6 11 11 9 7 7 7 7 7 6 6 6 5 5 5 5 5 4 Processor 10 | . . . . 11 15 15 15 15 15 13 8 6 5 10 17 17 13 5 Hackware 4 | . . . . . 5 7 7 7 7 12 3 . 1 5 3 5 3 2 Protection 6 | . 4 8 11 10 7 6 6 7 7 5 6 7 3 3 4 3 4 6 Energy Gun 4 | . 22 20 13 . 6 7 7 7 1 . . . 3 2 5 5 1 . Energy Cannon 2 | . . . . . . . 1 7 . 2 5 3 . 4 . . 3 3 Ballistic Gun 5 | . 5 . 2 17 7 7 5 . 12 7 4 5 2 2 3 5 4 1 Naked Turns 1 | . . . . . . . . . . . . . . . . . . 1 Heaviest Build 156 | 3 31 35 35 60 62 61 66 66 66 80 77 88 119 129 142 139 140 156 Greatest Support 220 | 3 40 60 63 63 85 85 85 85 85 90 110 88 57 119 28 168 190 220 Greatest Overweight (x) 18 | . 1 . . . . . . . . 1 18 2 11 7 5 4 1 11 Average Overweight (x) . | . . . . . . . . . . . . 1 2 4 4 1 . . Largest Inventory Capacity 25 | 5 15 15 15 20 20 20 20 20 20 20 20 20 25 25 25 25 25 25 Average Capacity 20 | 5 9 15 15 18 20 20 20 20 20 20 20 20 21 25 25 25 25 23 Most Carried 25 | 1 13 15 15 20 20 20 20 20 20 20 20 19 25 25 25 25 25 25 Average Carried 19 | . 6 13 14 17 19 20 19 19 14 18 17 15 19 24 24 24 23 22 Final Capacity 25 | 5 15 15 15 20 20 20 20 20 20 20 20 20 25 25 25 25 25 5 Final Carried 25 | 1 13 15 14 20 20 20 20 20 14 20 15 15 23 25 25 25 25 5 Class Distribution -------------------- 78% | Scavenger-Mutant 14% | Mutant 7% | Hacker-Mutant Dominant Class ---------------- Mutant | -10/Materials Mutant | -9/Materials Scavenger-Mutant | -9/Mines Scavenger-Mutant | -8/Materials Scavenger-Mutant | -7/Factory Scavenger-Mutant | -7/Lower Caves Scavenger-Mutant | -7/Lower Caves Scavenger-Mutant | -7/Zion Mutant | -6/Proximity Caves Hacker-Mutant | -6/Factory Scavenger-Mutant | -6/Lower Caves Scavenger-Mutant | -6/Lower Caves Scavenger-Mutant | -5/Factory Scavenger-Mutant | -5/Extension Scavenger-Mutant | -5/Cetus Scavenger-Mutant | -5/Archives Scavenger-Mutant | -5/Hub_04(d) Scavenger-Mutant | -4/Factory Resources | -11 -10 -9 -9 -8 -7 -7 -7 -7 -6 -6 -6 -6 -5 -5 -5 -5 -5 -4 ----------- Run | Scr Mat Mat Min Mat Fac Low Low Zio Pro Fac Low Low Fac Ext Cet Arc Hub Fac Matter Collected 7884 | 240 100 115 31 1281 475 165 414 34 411 485 643 282 846 706 167 219 488 782 Remotely 470 | . . . . 31 . 49 . . 275 . . . 60 55 . . . . Salvage Created 14671 | . 520 573 252 1576 909 37 655 . 492 852 866 431 1403 1468 183 700 1798 1956 Parts 677 | . 48 31 12 85 37 3 28 . 17 46 31 15 70 54 7 50 73 70 Haulers Intercepted 6 | . 1 . . 1 1 . 1 . . . . . 1 . . . 1 . Recyclers Shooed 10 | . . . 1 2 . . . . . . . . 6 . . . 1 . Parts Field Recycled . | . . . . . . . . . . . . . . . . . . . Retrieved Matter . | . . . . . . . . . . . . . . . . . . . Parts Self-Destructed 86 | . . . . . . 2 26 . 16 . 28 14 . . . . . . Prevented 8 | . . . . . . . . . . . . 8 . . . . . . Kills | -11 -10 -9 -9 -8 -7 -7 -7 -7 -6 -6 -6 -6 -5 -5 -5 -5 -5 -4 ------- Run | Scr Mat Mat Min Mat Fac Low Low Zio Pro Fac Low Low Fac Ext Cet Arc Hub Fac Combat Hostiles Destroyed 277 | . 10 11 8 28 18 3 16 . 19 11 22 12 22 22 6 4 23 42 Melee 1 | . . . . . . . . . . . . . . . . . . 1 Guns 137 | . 10 10 7 28 16 . 8 . 7 4 6 1 11 9 3 4 9 4 Cannons 59 | . . . . . . . . . . 6 7 7 5 8 . . 10 16 AOE 72 | . . 1 . . 2 3 8 . 12 . 7 4 5 5 3 . 4 18 Classes Destroyed 19 | . 7 1 1 2 1 . 1 . . 1 2 . . . . . 2 1 Worker 12 | . . . . 2 . . . . . 1 . . 2 . . . 4 3 Builder 11 | . 3 . . . . . . . . 1 . . 2 1 . . 2 2 Tunneler 3 | . 1 . . . 1 . . . . . . . 1 . . . . . Hauler 6 | . 1 . . 1 1 . 1 . . . . . 1 . . . 1 . Recycler 11 | . . . 1 3 . . . . . 1 . . 2 2 . . 2 . Minesweeper 1 | . . . . . . . 1 . . . . . . . . . . . Mechanic 1 | . . . . . . . . . . . . . . . . . . 1 Operator 8 | . 1 . . . . . . . . . . . . . . 7 . . Watcher 7 | . 1 . . 2 1 . . . . 2 . . . 1 . . . . Swarmer 60 | . 3 . 7 8 . 3 2 . 5 . 9 . 6 4 4 . . 9 Saboteur 1 | . . . . . . . . . . . . . . . . . 1 . Grunt 120 | . 7 5 1 14 12 . 12 . 13 2 4 6 7 9 2 . 14 12 Brawler 8 | . . . . . . . . . . . 3 3 . . . . . 2 Duelist 8 | . . . . . . . . . . . 2 1 1 1 . . . 3 Sentry 36 | . . 6 . 5 2 . 1 . 1 4 2 1 1 4 . 4 3 2 Hunter 18 | . . . . 1 1 . 1 . . . . 1 4 1 . . 1 8 Programmer 17 | . . . . . 3 . . . . 4 1 . 2 . . . 2 5 Heavy 2 | . . . . . . . . . . . . . . . . . 2 . Behemoth 5 | . . . . . . . . . . 1 1 . 1 1 . . . 1 Savage 1 | . . . . . . . . . . . . . . 1 . . . . Guerrilla 1 | . . . . . . . . . . . . . . 1 . . . . Best Kill Streak 11 | . 6 3 4 4 6 3 6 . 11 2 8 8 8 4 6 2 10 8 Combat Bots Only 11 | . 3 3 3 3 4 3 5 . 11 2 8 8 8 4 6 1 5 8 Max Kills in Single Turn 5 | . 2 1 1 1 2 2 5 . 2 1 2 3 3 3 3 1 5 5 Gunslinging . | . . . . . . . . . . . . . . . . . . . Exploded 5 | . . 1 . . 2 2 4 . 2 . 2 3 3 3 3 . 2 5 Melee 1 | . . . . . . . . . . . . . . . . . . 1 Uniques/NPCs Destroyed . | . . . . . . . . . . . . . . . . . . . Combat | -11 -10 -9 -9 -8 -7 -7 -7 -7 -6 -6 -6 -6 -5 -5 -5 -5 -5 -4 -------- Run | Scr Mat Mat Min Mat Fac Low Low Zio Pro Fac Low Low Fac Ext Cet Arc Hub Fac Damage Taken 28542 | . 498 598 163 1768 1113 30 526 . 2322 1299 2426 1323 3363 1442 286 594 3205 7586 Core 3593 | . 92 12 16 138 136 . 60 . 312 129 302 267 563 98 39 55 218 1156 Absorbed by Shields 279 | . . . . . . . . . . 51 58 . 49 . 121 . . . Reduced by Siege Mode 283 | . . . . . . . . . . . . . . . . . 172 111 Redirected to Shielding 31 | . 6 . . . . . . . . . . . . . . . . 25 Regen/Repaired (Parts) 1433 | . 121 . . 288 120 . . 193 . 711 . . . . . . . . Core Remaining (%) 53 | 100 63 . 93 74 . . . . 27 . . 17 . . . . 2 . Volleys Fired 1044 | . 42 26 20 110 51 2 62 . 35 48 58 23 76 65 17 65 91 253 Largest 2 | . 2 2 2 2 2 1 2 . 2 2 2 2 2 2 2 2 2 1 Hottest 178 | . 90 90 90 50 105 39 145 . 108 118 150 130 170 178 178 115 125 105 Shots Fired 1649 | . 81 52 35 219 101 3 83 . 64 76 89 40 132 128 33 95 170 248 Gun 1071 | . 81 52 35 219 100 1 40 . 51 34 24 12 80 79 31 95 92 45 Cannon 520 | . . . . . . . 36 . . 42 60 24 50 46 1 . 75 186 Launcher 58 | . . . . . 1 2 7 . 13 . 5 4 2 3 1 . 3 17 Special . | . . . . . . . . . . . . . . . . . . . Kinetic 721 | . 25 . 2 219 60 1 19 . 45 34 38 28 68 58 15 30 79 . Thermal 755 | . 26 . . . 40 . 57 . 6 42 46 8 62 67 17 65 88 231 Explosive 58 | . . . . . 1 2 7 . 13 . 5 4 2 3 1 . 3 17 Electromagnetic 115 | . 30 52 33 . . . . . . . . . . . . . . . Robot Hit Streak 53 | . 11 14 10 40 14 8 13 . 13 21 11 28 34 14 5 20 53 20 Robot Miss Streak 6 | . 5 3 3 5 4 . 5 . 1 3 3 1 3 4 1 2 2 6 Penetration Max 1 | . . . . . . . . . . . . 1 1 1 1 . 1 . Secondary Targets 6 | . . . . 5 . . . . 1 . . . . . . . . . Max Gunslinging Chain 1 | . . . . 1 . . . . 1 . . . . . . . . . Capacitor 230 | . . . . . . . . . . . . . . . . . . 230 Shots Hit Robots 1174 | . 51 47 27 172 86 1 36 . 54 52 48 33 101 88 22 76 126 154 Core Hits 687 | . 26 28 14 69 58 3 40 . 51 25 29 30 49 51 16 36 62 100 Critical Kills 10 | . . . . . 1 . . . . . 1 . 3 1 . 1 2 1 Critical Parts Destroyed 10 | . . . . . . . . . . 1 . . 3 1 1 3 1 . Critical Strikes 34 | . 3 . . . 1 . . . . 2 2 . 8 2 2 7 3 4 Burn 2 | . 2 . . . . . . . . . . . . . . . . . Meltdown 2 | . . . . . . . . . . . 1 . . . . . . 1 Destroy 23 | . . . . . 1 . . . . 1 1 . 6 2 2 7 3 . Blast 2 | . . . . . . . . . . . . . 2 . . . . . Corrupt 1 | . 1 . . . . . . . . . . . . . . . . . Impale 4 | . . . . . . . . . . 1 . . . . . . . 3 Melee Attacks 36 | . . . . . 3 . . . . 9 2 . 1 . . . . 21 Impact 3 | . . . . . 3 . . . . . . . . . . . . . Slashing . | . . . . . . . . . . . . . . . . . . . Piercing 33 | . . . . . . . . . . 9 2 . 1 . . . . 21 Sneak Attacks 3 | . . . . . . . . . . 3 . . . . . . . . Combat Hostiles . | . . . . . . . . . . . . . . . . . . . Follow-up Attacks . | . . . . . . . . . . . . . . . . . . . Damage Inflicted 38714 | . 628 704 426 2923 1904 217 1499 . 2842 1472 1949 1961 3278 3180 968 1869 4644 8250 Guns 16706 | . 628 568 343 2907 1711 . 581 . 933 572 377 172 1440 1305 636 1869 1690 974 Cannons 9707 | . . . . . . . 26 . . 620 978 824 966 1174 35 . 1626 3458 Explosions 11893 | . . 136 83 . 193 217 892 . 1909 . 594 965 869 701 297 . 1328 3709 Melee 389 | . . . . . . . . . . 280 . . . . . . . 109 Ramming 19 | . . . . 16 . . . . . . . . 3 . . . . . Kinetic 11371 | . 140 . 20 2907 780 . 180 . 775 572 698 740 1218 948 392 576 1425 . Thermal 14568 | . 190 136 83 . 931 . 427 . 158 620 657 256 1585 1531 279 1293 1891 4531 Explosive 10416 | . . . . . 193 217 892 . 1909 . 594 965 472 701 297 . 621 3555 Electromagnetic 1951 | . 298 568 323 . . . . . . . . . . . . . 707 55 Impact . | . . . . . . . . . . . . . . . . . . . Slashing . | . . . . . . . . . . . . . . . . . . . Piercing 389 | . . . . . . . . . . 280 . . . . . . . 109 Highest Corruption 10 | . 1 . . . 3 3 3 3 . . 3 3 2 2 3 3 3 10 Average Corruption 3 | . 1 . . . 2 3 3 3 . . 2 3 1 2 2 2 2 7 Corruption Purged 3 | . . . . . . . . . . . . . . . . 3 . . Corruption Blocked . | . . . . . . . . . . . . . . . . . . . Effects 153 | . . . . . 7 12 25 2 . . 3 11 11 19 4 6 3 50 Message Errors 36 | . . . . . 4 2 6 . . . . 4 5 3 . . 1 11 Matter Fused 39 | . . . . . . 4 7 . . . 1 2 1 7 . 2 1 14 Heat Flow Errors 19 | . . . . . 1 2 3 1 . . . . 1 3 1 1 . 6 Energy Discharges 18 | . . . . . 1 2 4 . . . . 2 2 . 1 3 . 3 Parts Rejected 2 | . . . . . . . . . . . . . . . 1 . . 1 Data Loss (minor) 14 | . . . . . . . 2 . . . . 2 1 2 . . . 7 Data Loss (major) 10 | . . . . . 1 1 3 . . . 1 1 . 1 1 . 1 . Misfires 4 | . . . . . . 1 . . . . 1 . . 2 . . . . Alerts 3 | . . . . . . . . 1 . . . . . 1 . . . 1 Misdirections 2 | . . . . . . . . . . . . . . . . . . 2 Weapon Failures 6 | . . . . . . . . . . . . . 1 . . . . 5 Overload Shots . | . . . . . . . . . . . . . . . . . . . Overflow Damage 848 | . . 142 . . 25 42 . . 49 . 31 14 138 14 19 . 162 212 Projectiles 177 | . . . . . . . . . . . 21 . 27 13 . . 62 54 Explosions 583 | . . 142 . . 25 42 . . 49 . 10 14 111 1 19 . 100 70 Melee 88 | . . . . . . . . . . . . . . . . . . 88 Knockbacks 10 | . . . . . . . . . . . 2 . 8 . . . . . Impact . | . . . . . . . . . . . . . . . . . . . Kinetic 10 | . . . . . . . . . . . 2 . 8 . . . . . Secondary . | . . . . . . . . . . . . . . . . . . . Self-Inflicted Damage 650 | . . 230 . . . . 39 . . . . 34 128 . . . 74 145 Shots 11 | . . 3 . . . . 1 . . . . 2 2 . . . 1 2 Rammed 5 | . . . . 3 . . . . . 1 . . 1 . . . . . Targets Rammed 5 | . . . . 3 . . . . . 1 . . 1 . . . . . Kicked . | . . . . . . . . . . . . . . . . . . . Crushed . | . . . . . . . . . . . . . . . . . . . Highest Temperature 363 | . 54 31 6 . 117 276 272 206 82 240 56 231 363 208 68 95 313 297 Average Temperature 75 | . 21 12 3 . 42 128 73 108 28 71 12 85 102 37 35 53 119 99 Received Heat Transfer 5636 | . 150 144 48 738 333 . 171 . 834 223 311 342 675 363 9 90 585 620 Effects 4 | . . . . . . . . . . . . 1 2 1 . . . . Energy Bleed 1 | . . . . . . . . . . . . 1 . . . . . . Interference 3 | . . . . . . . . . . . . . 2 1 . . . . Siege Activations 3 | . . . . . . . . . . . . . . . . . 1 2 Total Turns 156 | . . . . . . . . . . . . . . . . . 78 78 Longest Duration 78 | . . . . . . . . . . . . . . . . . 78 72 Robots Corrupted 2 | . . . 1 . . . . . . . . . . . . . 1 . Combat Hostiles 1 | . . . 1 . . . . . . . . . . . . . . . Parts Fried 7 | . 1 3 . . . . . . . . . . . . . . 3 . Impact Corruptions . | . . . . . . . . . . . . . . . . . . . Robots Melted 3 | . . . . . . . . . . . 1 . . . . . . 2 Combat Hostiles 3 | . . . . . . . . . . . 1 . . . . . . 2 Parts Melted 41 | . 1 . . . 6 . 1 . . 3 2 1 3 4 . 4 7 9 Heat Transferred 20866 | . 703 150 50 . 2000 . 962 . 350 842 790 400 2026 2268 420 1998 2516 5391 Parts Sabotaged . | . . . . . . . . . . . . . . . . . . . Parts Stolen . | . . . . . . . . . . . . . . . . . . . Parts Stripped . | . . . . . . . . . . . . . . . . . . . Power Chain Reactions 4 | . . 3 1 . . . . . . . . . . . . . . . Missiles Intercepted . | . . . . . . . . . . . . . . . . . . . Alert | -11 -10 -9 -9 -8 -7 -7 -7 -7 -6 -6 -6 -6 -5 -5 -5 -5 -5 -4 ------- Run | Scr Mat Mat Min Mat Fac Low Low Zio Pro Fac Low Low Fac Ext Cet Arc Hub Fac Peak Influence 1690 | . 367 521 340 506 423 . . . . 174 . . 395 449 806 503 964 1690 Initial 471 | . . 94 152 37 196 . . . . 109 . . 128 145 169 322 105 471 Average 364 | . 197 342 167 295 239 . . . . 73 . . 179 284 451 393 263 1177 Maximum Alert Level 5 | . 1 2 1 2 2 . . . . . . . 1 2 3 2 3 5 Low Security (%) 37 | 100 44 27 63 28 31 . . . . 100 . . 59 16 10 . 30 . Level 1 38 | . 55 40 36 43 68 . . . . . . . 40 80 33 51 54 . Level 2 11 | . . 31 . 28 . . . . . . . . . 3 39 48 15 13 Level 3 2 | . . . . . . . . . . . . . . . 15 . . 18 Level 4 8 | . . . . . . . . . . . . . . . . . . 59 Level 5 1 | . . . . . . . . . . . . . . . . . . 7 High Security . | . . . . . . . . . . . . . . . . . . . Max Security . | . . . . . . . . . . . . . . . . . . . Squads Dispatched 56 | . 3 1 . 5 7 . . . 1 6 . 1 3 3 1 . 7 18 Investigation 12 | . 1 1 . 3 2 . . . 1 . . . . 1 1 . . 2 Extermination 13 | . . . . . 3 . . . . 5 . . 1 . . . 1 3 Reinforcement 21 | . 2 . . 2 2 . . . . 1 . . 2 2 . . 5 5 Assault 7 | . . . . . . . . . . . . 1 . . . . 1 5 Garrison 3 | . . . . . . . . . . . . . . . . . . 3 Intercept . | . . . . . . . . . . . . . . . . . . . Searches Triggered . | . . . . . . . . . . . . . . . . . . . Construction Impeded 5 | . . . . . . . . . . . . . 1 1 . . 1 2 Haulers Reinforced 1 | . . . . . . . . . . . . . 1 . . . . . Active Scanning Responses . | . . . . . . . . . . . . . . . . . . . Cargo Convoy Interrupts . | . . . . . . . . . . . . . . . . . . . Stealth | -11 -10 -9 -9 -8 -7 -7 -7 -7 -6 -6 -6 -6 -5 -5 -5 -5 -5 -4 --------- Run | Scr Mat Mat Min Mat Fac Low Low Zio Pro Fac Low Low Fac Ext Cet Arc Hub Fac Distress Signals 14 | . 1 . . 1 1 . . . . . . . 3 2 2 . 2 2 Communications Jammed . | . . . . . . . . . . . . . . . . . . . Distress Signals . | . . . . . . . . . . . . . . . . . . . Times Spotted 443 | . 20 11 14 58 25 4 14 . 25 19 21 11 32 34 20 18 29 88 Peak Tracking Total 16 | . 4 3 4 6 7 4 5 . 13 3 5 11 6 6 5 1 5 16 Tactical Retreats 24 | . 4 . 3 3 . 1 . . 5 1 . 2 2 . . . . 3 Traps | -11 -10 -9 -9 -8 -7 -7 -7 -7 -6 -6 -6 -6 -5 -5 -5 -5 -5 -4 ------- Run | Scr Mat Mat Min Mat Fac Low Low Zio Pro Fac Low Low Fac Ext Cet Arc Hub Fac Traps Triggered 11 | . 1 . . 3 1 . . . . . . . . 4 . . 2 . Indirectly . | . . . . . . . . . . . . . . . . . . . Trap Hack Attempts . | . . . . . . . . . . . . . . . . . . . Triggered . | . . . . . . . . . . . . . . . . . . . Disarmed . | . . . . . . . . . . . . . . . . . . . Reprogrammed . | . . . . . . . . . . . . . . . . . . . Reused . | . . . . . . . . . . . . . . . . . . . Traps Extracted 1 | . . . . . . . 1 . . . . . . . . . . . Installed 2 | . . . . . . . . . . . . . . . . . 2 . Triggered 3 | . . . . . . . . . . . 1 2 . . . . . . Most Traps Carried 4 | . . . . . . . 4 4 4 4 4 4 4 4 4 4 4 2 Machines | -11 -10 -9 -9 -8 -7 -7 -7 -7 -6 -6 -6 -6 -5 -5 -5 -5 -5 -4 ---------- Run | Scr Mat Mat Min Mat Fac Low Low Zio Pro Fac Low Low Fac Ext Cet Arc Hub Fac Machines Disabled 49 | . . 3 . 3 . . . . 5 1 . . 2 4 2 2 7 20 Max in Single Turn 7 | . . 2 . 1 . . . . 1 1 . . 2 1 . 1 7 5 Garrison Access 4 | . . . . 1 1 . . . . . . . 1 . . . . 1 Network Hub 1 | . . . . . . . . . . . . . . . . . 1 . Machines Sabotaged . | . . . . . . . . . . . . . . . . . . . Garrisons Compromised . | . . . . . . . . . . . . . . . . . . . Overloaded Fab Kills . | . . . . . . . . . . . . . . . . . . . Hacking | -11 -10 -9 -9 -8 -7 -7 -7 -7 -6 -6 -6 -6 -5 -5 -5 -5 -5 -4 --------- Run | Scr Mat Mat Min Mat Fac Low Low Zio Pro Fac Low Low Fac Ext Cet Arc Hub Fac Machines Accessed 67 | . 4 4 1 14 8 . . . 1 6 1 . 4 11 1 . 2 10 Terminals 43 | . 2 3 . 9 4 . . . 1 2 . . 1 11 1 . 2 7 Fabricators 4 | . . . . . . . . . . 1 . . 1 . . . . 2 Repair Stations 6 | . 1 . . 2 2 . . . . 1 . . . . . . . . Recycling Units 6 | . 1 1 . 1 1 . . . . 1 . . 1 . . . . . Scanalyzers 2 | . . . . 1 . . . . . 1 . . . . . . . . Garrison Access 4 | . . . . 1 1 . . . . . . . 1 . . . . 1 Total Hacks 204 | . 12 10 1 50 17 . . . 5 39 1 . 8 19 4 . 5 33 Successful 111 | . 7 2 1 30 8 . . . 5 27 1 . 4 8 1 . 1 16 Failed 92 | . 4 8 . 20 9 . . . . 12 . . 4 11 3 . 4 17 Catastrophic 20 | . 1 1 . 3 3 . . . . 2 . . 1 1 1 . 1 6 Database Lockouts 1 | . 1 . . . . . . . . . . . . . . . . . Manual 69 | . 10 10 . 18 2 . . . . 12 . . 4 1 1 . 2 9 Terminals 133 | . 9 9 . 32 9 . . . 5 12 . . 3 19 4 . 5 26 Fabricators 9 | . . . . . . . . . . 3 . . 1 . . . . 5 Repair Stations 30 | . 2 . . 8 5 . . . . 15 . . . . . . . . Recycling Units 13 | . 1 1 . 1 2 . . . . 5 . . 3 . . . . . Scanalyzers 11 | . . . . 7 . . . . . 4 . . . . . . . . Garrison Access 6 | . . . . 2 1 . . . . . . . 1 . . . . 2 Terminal Hacks 51 | . 2 . 1 12 4 . . . 5 7 1 . 1 8 1 . . 9 Record 5 | . . . . . . . . . 5 . . . . . . . . . Part Schematic 2 | . . . . 2 . . . . . . . . . . . . . . Robot Analysis 5 | . 1 . . 2 . . . . . 2 . . . . . . . . Prototype ID Bank 7 | . . . . 3 . . . . . 1 . . 1 . . . . 2 Open Door 10 | . . . 1 . . . . . . . 1 . . 7 1 . . . Level Access Points 1 | . . . . . 1 . . . . . . . . . . . . . Branch Access Points 3 | . . . . . 1 . . . . 1 . . . . . . . 1 Emergency Access Points 1 | . . . . . . . . . . 1 . . . . . . . . Terminal Index 2 | . . . . 1 . . . . . . . . . . . . . 1 Alert Level 2 | . . . . 1 . . . . . . . . . 1 . . . . Unreport Threat 3 | . . . . 1 . . . . . . . . . . . . . 2 Locate Traps 2 | . . . . 1 1 . . . . . . . . . . . . . Maintenance Status 1 | . . . . . . . . . . 1 . . . . . . . . Patrol Status 1 | . . . . . . . . . . 1 . . . . . . . . Hauler Manifests 1 | . . . . 1 . . . . . . . . . . . . . . Zone Layout 5 | . 1 . . . 1 . . . . . . . . . . . . 3 Fabricator Hacks 6 | . . . . . . . . . . 1 . . 1 . . . . 4 Network Status 2 | . . . . . . . . . . . . . 1 . . . . 1 Load Schematic 1 | . . . . . . . . . . . . . . . . . . 1 Build 3 | . . . . . . . . . . 1 . . . . . . . 2 Repair Station Hacks 25 | . 2 . . 8 2 . . . . 13 . . . . . . . . Scan Component 12 | . 1 . . 4 1 . . . . 6 . . . . . . . . Repair 12 | . 1 . . 4 1 . . . . 6 . . . . . . . . Refit 1 | . . . . . . . . . . 1 . . . . . . . . Recycling Unit Hacks . | . . . . . . . . . . . . . . . . . . . Scanalyzer 11 | . . . . 7 . . . . . 4 . . . . . . . . Insert Component 6 | . . . . 4 . . . . . 2 . . . . . . . . Analyze 5 | . . . . 3 . . . . . 2 . . . . . . . . Garrison Access Hacks 3 | . . . . 1 1 . . . . . . . 1 . . . . . Seal Access 3 | . . . . 1 1 . . . . . . . 1 . . . . . Unauthorized Hacks 15 | . 3 2 . 2 1 . . . . 2 . . 1 . . . 1 3 Terminals 8 | . 2 1 . 1 . . . . . . . . 1 . . . 1 2 Track 3 | . . . . 1 . . . . . . . . . . . . 1 1 Assimilate 1 | . 1 . . . . . . . . . . . . . . . . . Botnet 3 | . . 1 . . . . . . . . . . 1 . . . . 1 Disrupt 1 | . 1 . . . . . . . . . . . . . . . . . Fabricators 1 | . . . . . . . . . . . . . . . . . . 1 Haulers 1 | . . . . . . . . . . . . . . . . . . 1 Repair Stations . | . . . . . . . . . . . . . . . . . . . Recycling Units 6 | . 1 1 . 1 1 . . . . 2 . . . . . . . . Recyclers 2 | . . . . . 1 . . . . 1 . . . . . . . . Mask 1 | . . . . . . . . . . 1 . . . . . . . . Tunnel 3 | . 1 1 . 1 . . . . . . . . . . . . . . Scanalyzers . | . . . . . . . . . . . . . . . . . . . Garrison Access . | . . . . . . . . . . . . . . . . . . . Data Cores Recovered . | . . . . . . . . . . . . . . . . . . . Used . | . . . . . . . . . . . . . . . . . . . Hacking Detections 50 | . 3 3 . 12 6 . . . 1 5 . . 3 5 1 . 2 9 Full Trace Events 8 | . . . . 1 2 . . . 1 . . . . 1 1 . . 2 Feedback Events 1 | . . . . . . . . . . . . . . . 1 . . . Corruption 1 | . . . . . . . . . . . . . . . 1 . . . Feedback Blocked . | . . . . . . . . . . . . . . . . . . . Robot Schematics Acquired 2 | . . . . . . . . 2 . . . . . . . . . . Robots Built 3 | . . . . . . . . . . . . . . . . . . 3 Authchips . | . . . . . . . . . . . . . . . . . . . Time 93 | . . . . . . . . . . . . . . . . . . 93 Total Robot Build Rating 21 | . . . . . . . . . . . . . . . . . . 21 Part Schematics Acquired 22 | . . . . 5 . . . 15 . 2 . . . . . . . . Parts Built 4 | . . . . . . . . . . 2 . . . . . . . 2 Authchips 1 | . . . . . . . . . . . . . . . . . . 1 Time 89 | . . . . . . . . . . 58 . . . . . . . 31 Total Part Build Rating 24 | . . . . . . . . . . 14 . . . . . . . 10 Parts Repaired 12 | . 1 . . 4 1 . . . . 6 . . . . . . . . Time 395 | . 26 . . 102 19 . . . . 248 . . . . . . . . Parts Recycled . | . . . . . . . . . . . . . . . . . . . Recycled Matter . | . . . . . . . . . . . . . . . . . . . Retrieved Matter . | . . . . . . . . . . . . . . . . . . . Retrieved Components . | . . . . . . . . . . . . . . . . . . . Parts Scanalyzed 5 | . . . . 3 . . . . . 2 . . . . . . . . Part Schematics Acquired 5 | . . . . 3 . . . . . 2 . . . . . . . . Parts Damaged . | . . . . . . . . . . . . . . . . . . . Bothacking | -11 -10 -9 -9 -8 -7 -7 -7 -7 -6 -6 -6 -6 -5 -5 -5 -5 -5 -4 ------------ Run | Scr Mat Mat Min Mat Fac Low Low Zio Pro Fac Low Low Fac Ext Cet Arc Hub Fac Used RIF Installer . | . . . . . . . . . . . . . . . . . . . Robots Hacked . | . . . . . . . . . . . . . . . . . . . Non-combat . | . . . . . . . . . . . . . . . . . . . Combat . | . . . . . . . . . . . . . . . . . . . Robot Hacks Applied . | . . . . . . . . . . . . . . . . . . . Relay Couplers Released 3 | . . . . . . . . . . . . . . . . . . 3 Machine Destruction 3 | . . . . . . . . . . . . . . . . . . 3 Fabnet Peak Effective % . | . . . . . . . . . . . . . . . . . . . Robots Rewired 6 | . . . . . . . . . . . . 1 . 5 . . . . Allies Hacked . | . . . . . . . . . . . . . . . . . . . Hacks Repelled . | . . . . . . . . . . . . . . . . . . . Allies | -11 -10 -9 -9 -8 -7 -7 -7 -7 -6 -6 -6 -6 -5 -5 -5 -5 -5 -4 -------- Run | Scr Mat Mat Min Mat Fac Low Low Zio Pro Fac Low Low Fac Ext Cet Arc Hub Fac Total Allies 30 | . 1 . 2 . . . . 5 . . . 2 . 16 1 . . 3 Largest Group 11 | . 1 . 2 2 . . . 5 5 . . 2 . 11 11 1 . 3 Highest-Rated Group 476 | . 10 . 49 49 . . . 144 144 . . 167 . 461 476 159 . 141 Highest-Rated Ally 159 | . 10 . 31 31 . . . 31 31 . . 135 . 159 159 159 . 47 Total Orders 1 | . . . . . . . . . . . . . . . 1 . . . RETURN 1 | . . . . . . . . . . . . . . . 1 . . . Ally Attacks 238 | . . . . 30 . . . . 11 . . 7 . 85 92 1 . 12 Total Damage 4835 | . . . . 587 . . . . 211 . . 201 . 1200 2459 . . 177 Kills 35 | . . . . 4 . . . . 1 . . 3 . 10 17 . . . Allies Corrupted . | . . . . . . . . . . . . . . . . . . . Allies Melted . | . . . . . . . . . . . . . . . . . . . Intel | -11 -10 -9 -9 -8 -7 -7 -7 -7 -6 -6 -6 -6 -5 -5 -5 -5 -5 -4 ------- Run | Scr Mat Mat Min Mat Fac Low Low Zio Pro Fac Low Low Fac Ext Cet Arc Hub Fac Robot Analysis Total 5 | . 1 . . 2 . . . . . 2 . . . . . . . . Derelict Logs Recovered 6 | . . . 1 . . 1 . 1 . . 1 2 . . . . . . Drone Launches 6 | . . . . . . . . . . . . . . 3 2 . . 1 Drone Recoveries 4 | . . . . . . . . . . . . . . 1 2 . . 1 Exploration | -11 -10 -9 -9 -8 -7 -7 -7 -7 -6 -6 -6 -6 -5 -5 -5 -5 -5 -4 ------------- Run | Scr Mat Mat Min Mat Fac Low Low Zio Pro Fac Low Low Fac Ext Cet Arc Hub Fac Turns Passed 20737 | 19 767 557 1176 2436 1477 640 1221 1587 533 2009 938 690 1303 1602 363 692 643 2084 Spaces Moved 10228 | 25 523 264 685 1203 772 375 642 1012 240 872 434 228 563 717 175 154 189 1155 Core 468 | 25 254 . . . . . . . . . 1 . . . . . . 188 Treads 7809 | . 269 264 685 1203 772 375 642 1012 240 872 433 153 124 77 . 110 189 389 Legs 711 | . . . . . . . . . . . . 75 60 . . . . 576 Wheels 1240 | . . . . . . . . . . . . . 379 640 175 44 . 2 Hover . | . . . . . . . . . . . . . . . . . . . Flight . | . . . . . . . . . . . . . . . . . . . Fastest Speed 50 | 50 50 160 160 155 156 156 156 156 156 165 160 160 105 138 160 160 160 50 Average Speed 157 | 50 107 160 160 155 156 156 156 156 164 171 170 245 172 170 160 160 164 133 Slowest Speed 950 | 50 160 160 160 160 156 156 156 156 165 246 950 260 260 240 175 160 240 260 Overloaded Moves . | . . . . . . . . . . . . . . . . . . . Propulsion Burnouts . | . . . . . . . . . . . . . . . . . . . Robots Hopped . | . . . . . . . . . . . . . . . . . . . Cave-ins Triggered . | . . . . . . . . . . . . . . . . . . . Exploration Rate (%) 51 | 3 56 23 97 91 24 65 69 84 44 22 62 37 15 85 66 80 26 28 Regions Visited 18 Branch Regions 11 Pre-discovered Areas 9 | . 1 1 1 1 . . . 3 . . 1 1 . . . . . . Known Exits Taken 4 | . . . . . 1 . . . 1 1 . 1 . . . . . . Unknown Exits Taken 14 | 1 1 1 1 1 . 1 1 1 . . 1 . 1 1 1 1 1 . Scrap Searched 16 | . . . 1 . . 4 3 3 1 . 3 1 . . . . . . Spaces Dug 151 | . . . . . 2 14 35 . 6 18 16 . 4 . . . 2 54 Terrain Destroyed 999 | . . 53 6 . 7 28 108 . 30 19 74 18 56 53 23 9 272 243 Melee 17 | . . . . . 2 . . . . 3 1 . . . . . . 11 Projectile 190 | . . . . . . . 21 . . 16 31 1 18 14 4 9 22 54 AOE 792 | . . 53 6 . 5 28 87 . 30 . 42 17 38 39 19 . 250 178 Terrain Rammed . | . . . . . . . . . . . . . . . . . . . Walls Destroyed . | . . . . . . . . . . . . . . . . . . . Machines Disabled . | . . . . . . . . . . . . . . . . . . . Actions | -11 -10 -9 -9 -8 -7 -7 -7 -7 -6 -6 -6 -6 -5 -5 -5 -5 -5 -4 --------- Run | Scr Mat Mat Min Mat Fac Low Low Zio Pro Fac Low Low Fac Ext Cet Arc Hub Fac Total 13395 | 29 649 346 730 1582 943 426 767 1022 309 1293 538 320 752 970 225 507 353 1634 Wait 1238 | . 59 30 18 182 61 43 35 5 8 287 8 27 31 30 7 269 36 102 Move 10210 | 24 522 263 684 1202 771 374 641 1011 239 871 433 227 562 716 174 153 188 1155 Hop . | . . . . . . . . . . . . . . . . . . . Pick Up 161 | 1 15 10 1 25 13 . 3 3 5 19 2 4 17 9 6 6 7 15 Fast Attach 143 | 4 5 1 1 10 4 . 2 . 1 13 9 2 24 21 3 2 10 31 Attach 104 | . 2 5 2 9 3 . . . 11 5 11 7 12 4 1 2 7 23 Detach 41 | . . . . 2 . . . . 1 2 5 3 10 2 1 1 3 11 Swap 152 | . 2 6 2 15 18 6 19 . 8 20 9 1 9 13 6 2 7 9 Drop 149 | . 2 5 2 24 19 1 5 3 1 18 1 . 9 26 10 7 2 14 Fire 1044 | . 42 26 20 110 51 2 62 . 35 48 58 23 76 65 17 65 91 253 Melee 36 | . . . . . 3 . . . . 9 2 . 1 . . . . 21 Ram . | . . . . . . . . . . . . . . . . . . . Kick . | . . . . . . . . . . . . . . . . . . . Crush 5 | . . . . 3 . . . . . 1 . . 1 . . . . . Escape Stasis 32 | . . . . . . . . . . . . . . 32 . . . . Rewire 78 | . . . . . . . . . . . . 26 . 52 . . . . Trap 2 | . . . . . . . . . . . . . . . . . 2 . Miscellaneous . | . . . . . . . . . . . . . . . . . . . Route ------- -11/Scrapyard -10/Materials (discovered 2 exits: *Mat / [*Min]) -9/Materials -9/Mines (discovered 3 exits: *Mat x2 / [*Zio]) -8/Materials (discovered 3 exits: *Fac x3) -7/Factory (discovered 8 exits: *Fac x4 / *Sto x2 / *Low x2) -7/Lower Caves -7/Lower Caves (discovered 2 exits: *Fac / [*Zio]) -7/Zion -6/Proximity Caves -6/Factory (discovered 4 exits: *Fac x2 / *Low x2) -6/Lower Caves -6/Lower Caves (discovered 2 exits: *Fac x2) -5/Factory (discovered 2 exits: *Fac / *Ext) -5/Extension (discovered 2 exits: *Fac / *Cet) -5/Cetus (discovered 2 exits: *Fac / [*Arc]) -5/Archives (discovered 3 exits: *Fac / *Hub x2) -5/Hub_04(d) -4/Factory (discovered 3 exits: Upp x2 / Arm) History --------- Turn | Location | Event 5 | -11/Scrapyard | Discovered new exit (range 15) 20 | -11/Scrapyard | Entered Materials 152 | -10/Materials | Discovered new exit (range 9) 288 | -10/Materials | Discovered new exit (range 9) 311 | -10/Materials | Build established: Mutant 350 | -10/Materials | Central database locked down 723 | -10/Materials | Repaired Lgt. Treads 787 | -10/Materials | Entered another Materials area 787 | -9/Materials | Evolved 2 slots: Propulsion x1, Utility x1 980 | -9/Materials | Lost 3 parts (1u2w) 1149 | -9/Materials | Discovered new exit (range 16) 1344 | -9/Materials | Entered Mines 1391 | -9/Mines | Build established: Scavenger-Mutant 1482 | -9/Mines | A Derelict revealed a hidden shortcut to a safe place 2009 | -9/Mines | Discovered new exit (range 6) 2377 | -9/Mines | Found the Drone Emporium 2389 | -9/Mines | Found Prototype Device 2390 | -9/Mines | Identified Thief Drone Bay 2506 | -9/Mines | Discovered new exit (range 9) 2520 | -9/Mines | Entered Materials 2520 | -8/Materials | Accompanied by 2 allies 2520 | -8/Materials | Evolved 2 slots: Utility x2 2525 | -8/Materials | Led the pair of lost Derelicts to an unsafe place 3671 | -8/Materials | Discovered new exit (range 3) 4329 | -8/Materials | Repaired Adv. Treads 4355 | -8/Materials | Repaired Lgt. Angular Momentum Engine 4378 | -8/Materials | Discovered new exit (range 13) 4722 | -8/Materials | Repaired Med. Armor Plating 4749 | -8/Materials | Repaired Lgt. Treads 4789 | -8/Materials | Discovered new exit (range 15) 4956 | -8/Materials | Entered Factory 4956 | -7/Factory | Evolved 2 slots: Propulsion x1, Utility x1 5737 | -7/Factory | Discovered new exit (range 7) 5996 | -7/Factory | Identified exit to Factory 6093 | -7/Factory | Identified exit to Storage 6093 | -7/Factory | Identified exit to Lower Caves 6127 | -7/Factory | Repaired Adv. Treads 6433 | -7/Factory | Entered Lower Caves 6505 | -7/Lower Caves | Learned Factory trap positions 6923 | -7/Lower Caves | Encountered a Warlord checkpoint 7069 | -7/Lower Caves | Discovered new exit (range 3) 7073 | -7/Lower Caves | Entered another Lower Caves area 7283 | -7/Lower Caves | Discovered exit to Factory (range 12) 7684 | -7/Lower Caves | Spotted B-75 Beast 7994 | -7/Lower Caves | Attracted the attention of an 0b10 checkpoint 8127 | -7/Lower Caves | Encountered a Warlord checkpoint 8280 | -7/Lower Caves | Discovered new exit (range 7) 8294 | -7/Lower Caves | Entered Zion 8360 | -7/Zion | System corruption cleaned by Quarantine Array 8419 | -7/Zion | Discovered new exit (range 11) 8742 | -7/Zion | Learned location of Quarantine (-3) 8968 | -7/Zion | Learned 8 Factory zone layouts 9067 | -7/Zion | Given A8's code to call for help 9285 | -7/Zion | Given the Hacking Drone Bay 9388 | -7/Zion | Found CR-A16's Pointy Stick 9703 | -7/Zion | Gained Derelict followers 9881 | -7/Zion | Entered Proximity Caves 9881 | -6/Proximity Caves | Accompanied by 5 allies 9892 | -6/Proximity Caves | Learned Armory terminal intel 9892 | -6/Proximity Caves | Learned Extension security intel 9892 | -6/Proximity Caves | Learned Research stockpile data 9892 | -6/Proximity Caves | Learned Research trap positions 9892 | -6/Proximity Caves | Learned Factory trap positions 9912 | -6/Proximity Caves | Attracted the attention of an 0b10 base 9929 | -6/Proximity Caves | Core integrity fell below 50% 9965 | -6/Proximity Caves | Destroyed 11 combat bots 9974 | -6/Proximity Caves | Lost 8 parts (1p3n3u1w) 10078 | -6/Proximity Caves | Destroyed 7 combat bots 10337 | -6/Proximity Caves | Build established: Mutant 10348 | -6/Proximity Caves | Discovered exit to Factory (range 8) 10414 | -6/Proximity Caves | Entered Factory 10414 | -6/Factory | Evolved 2 slots: Power x1, Utility x1 10415 | -6/Factory | Identified exit to Factory 10416 | -6/Factory | Loaded intel: 109 trap records 10538 | -6/Factory | Repaired Arm. Treads? 10616 | -6/Factory | Repaired Mic. Nuclear Core 10644 | -6/Factory | Repaired Lgt. Treads 10683 | -6/Factory | Repaired Arm. Treads 10717 | -6/Factory | Repaired Med. Armor Plating 10788 | -6/Factory | Repaired Prc. Assault Rifle 10885 | -6/Factory | Build established: Hacker-Mutant 10922 | -6/Factory | Spotted B-75 Beast 11060 | -6/Factory | Revealed the true nature of CR-A16's Pointy Stick 11063 | -6/Factory | Destroyed B-75 Beast 11600 | -6/Factory | Identified exit to Lower Caves 11665 | -6/Factory | Discovered exit to Factory (range 12) 11706 | -6/Factory | Fabricated Hardcell Cannon? 12423 | -6/Factory | Entered Lower Caves 12669 | -6/Lower Caves | Build established: Scavenger-Mutant 12693 | -6/Lower Caves | Spotted B-75 Beast 12777 | -6/Lower Caves | Destroyed B-75 Beast 12807 | -6/Lower Caves | Lost 5 parts (3n2u) 12945 | -6/Lower Caves | Attracted the attention of an 0b10 outpost 13077 | -6/Lower Caves | Lost 6 parts (2n2u2w) 13157 | -6/Lower Caves | Attracted the attention of an 0b10 checkpoint 13159 | -6/Lower Caves | Core integrity fell below 50% 13220 | -6/Lower Caves | Destroyed 8 combat bots 13343 | -6/Lower Caves | Discovered new exit (range 15) 13361 | -6/Lower Caves | Entered another Lower Caves area 13452 | -6/Lower Caves | Discovered exit to Factory (range 5) 13593 | -6/Lower Caves | Encountered a Warlord checkpoint 13660 | -6/Lower Caves | Learned Factory terminal intel 13667 | -6/Lower Caves | Learned location of Extension (-5) 13759 | -6/Lower Caves | Attracted the attention of an 0b10 outpost 13806 | -6/Lower Caves | Core integrity fell below 20% 13830 | -6/Lower Caves | Destroyed 8 combat bots 13836 | -6/Lower Caves | Lost 9 parts (2p2n3u2w) 13864 | -6/Lower Caves | AD-0RF showed up to help 13896 | -6/Lower Caves | AD-0RF revealed a hidden path 14051 | -6/Lower Caves | Entered Factory 14051 | -5/Factory | Evolved 2 slots: Propulsion x1, Utility x1 14052 | -5/Factory | Loaded intel: 84 trap records 14053 | -5/Factory | Loaded intel: 28 terminal locations 14061 | -5/Factory | Build established: Mutant 14519 | -5/Factory | Spotted B-75 Beast 14523 | -5/Factory | Build established: Scavenger-Mutant 14578 | -5/Factory | Lost 3 parts (1p2n) 14632 | -5/Factory | Destroyed B-75 Beast 14689 | -5/Factory | Lost 5 parts (1p1n2u1w) 14972 | -5/Factory | Discovered new exit (range 16) 15027 | -5/Factory | Discovered new exit (range 9) 15190 | -5/Factory | Destroyed 8 combat bots 15212 | -5/Factory | Core integrity fell below 50% 15243 | -5/Factory | Lost 12 parts (2p5n4u1w) 15354 | -5/Factory | Entered Extension 15389 | -5/Extension | Disrupted transfer network 16127 | -5/Extension | Rescued a captive Derelict 16265 | -5/Extension | Rescued a captive Derelict 16266 | -5/Extension | Rescued a captive Derelict 16410 | -5/Extension | Spotted B-75 Beast 16435 | -5/Extension | Spotted B-75 Beast 16461 | -5/Extension | Destroyed B-75 Beast 16562 | -5/Extension | Rescued a captive Derelict 16597 | -5/Extension | Rescued a captive Derelict 16598 | -5/Extension | Rescued a captive Derelict 16620 | -5/Extension | Rescued A7 16650 | -5/Extension | Rescued a captive Derelict 16652 | -5/Extension | Rescued a captive Derelict 16763 | -5/Extension | Rescued a captive Derelict 16765 | -5/Extension | Rescued a captive Derelict 16913 | -5/Extension | Discovered new exit (range 10) 16915 | -5/Extension | Discovered new exit (range 6) 16956 | -5/Extension | Entered Cetus 16956 | -5/Cetus | Accompanied by 11 allies (A7) 16961 | -5/Cetus | Acquired a Cetus Manufacturing Module code from A7 16979 | -5/Cetus | Spotted Cetus Guard 16979 | -5/Cetus | Spotted Cetus Guard 16982 | -5/Cetus | Spotted Cetus Guard 16982 | -5/Cetus | Spotted Cetus Guard 16990 | -5/Cetus | Allies destroyed Cetus Guard 16996 | -5/Cetus | Allies destroyed Cetus Guard 16997 | -5/Cetus | Allies destroyed Cetus Guard 16997 | -5/Cetus | Allies destroyed Cetus Guard 17079 | -5/Cetus | Started Cetus Manufacturing Module 17097 | -5/Cetus | Escorted A7 to Cetus Mainframe 17104 | -5/Cetus | Manufactured an Enhanced Grunt 17104 | -5/Cetus | Cetus Manufacturing Module disabled 17137 | -5/Cetus | Discovered new exit (range 15) 17165 | -5/Cetus | Spotted Cetus Guard 17165 | -5/Cetus | Spotted Cetus Guard 17173 | -5/Cetus | Spotted Cetus Guard 17183 | -5/Cetus | Allies destroyed Cetus Guard 17184 | -5/Cetus | Allies destroyed Cetus Guard 17184 | -5/Cetus | Spotted Cetus Guard 17189 | -5/Cetus | Allies destroyed Cetus Guard 17198 | -5/Cetus | Discovered new exit (range 15) 17206 | -5/Cetus | Met Revision 17 17319 | -5/Cetus | Entered Archives 17319 | -5/Archives | Accompanied by 1 ally (A7) 17324 | -5/Archives | Received a hacking code to weaken MAIN.C 17450 | -5/Archives | Discovered new exit (range 14) 17596 | -5/Archives | Discovered new exit (range 15) 17715 | -5/Archives | Discovered new exit (range 16) 18011 | -5/Archives | Entered Hub_04(d) 18188 | -5/Hub_04(d) | Discovered new exit (range 5) 18235 | -5/Hub_04(d) | Core integrity fell below 20% 18465 | -5/Hub_04(d) | Lost 8 parts (1p1n5u1w) 18611 | -5/Hub_04(d) | First assault squad dispatched 18651 | -5/Hub_04(d) | Network Hub disabled 18654 | -5/Hub_04(d) | Entered Factory 18654 | -4/Factory | Evolved 2 slots: Propulsion x1, Utility x1 18727 | -4/Factory | Found Quantum Capacitor 18838 | -4/Factory | Spotted B-86 Titan 18865 | -4/Factory | Destroyed B-86 Titan 18904 | -4/Factory | First assault squad dispatched 19138 | -4/Factory | Found Prototype Processor 19138 | -4/Factory | Identified Exp. Terrain Scan Processor 19303 | -4/Factory | Fabricated Adv. Terrain Scanner (x2) 19406 | -4/Factory | Lost 3 parts (2u1w) 19415 | -4/Factory | Destroyed 8 combat bots 19539 | -4/Factory | Lost 10 parts (3p3n3u1w) 19618 | -4/Factory | Found Hvy. Reflective Plating 19782 | -4/Factory | Fabricated G-67 Veteran? 19829 | -4/Factory | Garrison activated, responded to threat 20551 | -4/Factory | Core integrity fell below 50% 20576 | -4/Factory | System corruption reached 10% 20591 | -4/Factory | Released all parts (10) 20621 | -4/Factory | Lost 5 parts (4n1u) 20643 | -4/Factory | Identified exit to Upper Caves 20643 | -4/Factory | Identified exit to Armory 20662 | -4/Factory | Core integrity fell below 20% 20738 | -4/Factory | Destroyed by G-67 Veteran with Field Laser Last Messages --------------- 20677_ Acquired Seismic Detector. 20678_ System corrupted: Energy discharge (-5). 20679_ Acquired Adv. Terrain Scanner. 20695_ ZCYEPERWCB3XPUBM7ZBVEUZUM 20724_ Acquired Field Propulsion Array. 20725_ Slug penetrates Wall. Map ----- +----------------------------------------------------+ | ?????????# """"#?????????????????????????????? | | ?????????# """"#?????????????????????????????? | | ?????????#! """"#?????????????????????????????? | | ?????????# #?????????????????????????????? | | ?????????#####/#####?????????????????????????????? | | ?????????????# #?????????????????????????????????? | | ?????????????# #??#####??????????????????????????? | | ?????????????# #? #??????????????????????????? | | ?????????????# #? [ #??????????????????????????? | | ?????????????# # #??????????????????????????? | | ############## # """ #??????????????????????????? | | # # / """ #??????????????????????????? | | # # # """ #??????????????????????????? | | # # ############??????????????????????? | | # #lx #??????????????????????? | | # # #??????????????????????? | | # !! + h #??????????????????????? | | # ! # xg #??????????????????????? | | # ! # Ym #??????????????????????? | | # # g #??????????????????????? | | # # g #####+##########"" ???? | | # + k w ??? | | # ##### T# ??? | | ##############???#### ??? | | ????????????????????# ?? | | ????????????????????# @ ?? | | ????????????????????######## k##########??????? | | ????????????????????????????? #???????????????? | | ?????????????????????????????? #???????????????? | | ??????????????????????????????? +???????????????? | | ?????????????????????????????????????????????????? | | ?????????????????????????????????????????????????? | | ?????????????????????????????????????????????????? | | ?????????????????????????????????????????????????? | | ?????????????????????????????????????????????????? | | ?????????????????????????????????????????????????? | | ?????????????????????????????????????????????????? | | ?????????????????????????????????????????????????? | | ?????????????????????????????????????????????????? | | ?????????????????????????????????????????????????? | | ?????????????????????????????????????????????????? | | ?????????????????????????????????????????????????? | | ?????????????????????????????????????????????????? | | ?????????????????????????????????????????????????? | | ?????????????????????????????????????????????????? | | ?????????????????????????????????????????????????? | | ?????????????????????????????????????????????????? | | ?????????????????????????????????????????????????? | | ?????????????????????????????????????????????????? | | ?????????????????????????????????????????????????? | +----------------------------------------------------+ Best States ------------- Heat Dissipation 101 Coolant Potential 80 Energy Generation 45 Energy Capacity 640 Matter Stores 300 Matter Capacity 300 Sight Range 23 Terrain Scan Density 1010 Additional Mass Support 12 Base Temperature (-) 100 Armor Coverage 825 Resistance: TH 25 Resistance: EM 25 Core Shielding 20 Utility Shielding 33 Evasion (%) 55 Targeting Accuracy 16 Target Analysis 6 Core Analysis 6 Recoil Reduction 6 Matter Filtering 30 Offensive Hacking 12 Defensive Hacking 10 Authchip Count 1 Trap Extractor Capacity 6 Item Schematics ----------------- Huge Storage Unit | -8/Materials | Hacked Hcp. Storage Unit | -8/Materials | Scanalyzed Med. Armor Plating | -8/Materials | Scanalyzed Lrn. Tractor Beam | -8/Materials | Scanalyzed Seismic Detector | -8/Materials | Hacked Magnetic Acceleration Cannon | -7/Zion | Archive Component Analysis Suite | -7/Zion | Archive Mak. Terrain Scan Processor | -7/Zion | Archive Lgt. Fission Core | -7/Zion | Archive Neutrino Core | -7/Zion | Archive Ripper | -7/Zion | Archive Imp. Particle Charger | -7/Zion | Archive Mak. System Shield | -7/Zion | Archive Adv. Terrain Scanner | -7/Zion | Archive Gatling Laser | -7/Zion | Archive Imp. Hacking Suite | -7/Zion | Archive Hvy. Ion Cannon | -7/Zion | Archive Imp. Cryofiber Web | -7/Zion | Archive Plasma Cannon | -7/Zion | Archive Imp. Shock Absorption System | -7/Zion | Archive Lyr. Medium Armor Plating | -6/Factory | Scanalyzed Imp. Shield Generator | -6/Factory | Scanalyzed Robot Schematics ------------------ L-41 Fighter | -7/Zion | Archive G-47 Trooper | -7/Zion | Archive Fabricated ------------ Hardcell Cannon | x2 | -6/Factory | Preloaded Adv. Terrain Scanner | x2 | -4/Factory | Authchip G-67 Veteran | x3 | -4/Factory | Preloaded Alien Tech Used ----------------- None Achievements -------------- None Challenges ------------ None Game ------ Seed PortableImpulseFirepult Manual? 0 Play Time 03:17:52 Cumulative 299.4 hours Start 2023.01.30 @ 16:15:50 End 2023.02.01 @ 17:51:19 Sessions 5 Manual Loads 0 Difficulty Rogue Special Mode None Game No. 124 Rogue 124 Adventurer 0 Explorer 0 Win Type - Total 11 Types 4/2/2/1/1/0/0/1/0 Lore% 86 Gallery% 83 Achievement% 69 Wizard Run 0 Options --------- ASCII 0 Keyboard 1 Movement Numpad Keybinds 0 Fullscreen 2 Font 18/X11 Map View 76x50 Tactical HUD 1 Map Filters NONE Filters NONE Steam 1 RUN: ae7d53e9-de89-420b-b7b8-6d15ce84b219